Cogmind - Beta 17 @@@ ROGUE MODE // 2026.06.28 @ 18:42:34 Player: Calasmeer Result: Destroyed by G-47 Trooper with Particle Gun Performance ------------- Evolutions (0) 0 Regions Visited (2) 400 Robots Destroyed (10) 50 Value Destroyed (108) 108 Prototype IDs (0) 0 Alien Tech Used (0) 0 Bonus (0) 0 TOTAL SCORE: 558 Bonus ------- None Cogmind --------- Core Integrity 0/250 Matter 265/300 Energy 81/100 System Corruption 0% Temperature Warm (115) Movement Core (250) Ox4 Location -10/Mines Parts ------- > --- POWER (1) -------- (None) > --- PROPULSION (2) --- (None) > --- UTILITY (2) ------ Medium Storage Unit Signal Interpreter > --- WEAPON (2) ------- Small Laser Assault Rifle > --- INVENTORY (10) --- Light Treads Aluminum Leg Aluminum Leg Medium Matter Pod (37) Assault Rifle Peak State ------------ > --- POWER ------------ Ion Engine > --- PROPULSION ------- Wheel Compact Wheel > --- UTILITY ---------- Small Storage Unit Seismic Detector > --- WEAPON ----------- Small Laser Light Assault Rifle > --- INVENTORY -------- Ion Engine Light Treads Light Treads Aluminum Leg Aluminum Leg Wheel Assault Rifle [Rating: 7] Favorites ----------- Power Ion Engine Engine Ion Engine Propulsion Wheel Wheel Wheel Utility Small Storage Unit Device Seismic Detector Storage Small Storage Unit Processor Signal Interpreter Weapon Small Laser Energy Gun Small Laser Ballistic Gun Light Assault Rifle Build | -11 -10 -10 ------- Run | Yrd Mat Min Slots Evolved . | . . . Power . | . . . Propulsion . | . . . Utility . | . . . Weapon . | . . . Parts Attached 13 | 7 4 2 Power 2 | 1 1 . Engine 2 | 1 1 . Core . | . . . Reactor . | . . . Propulsion 3 | 2 1 . Treads . | . . . Leg . | . . . Wheel 3 | 2 1 . Hover . | . . . Flight . | . . . Utility 4 | 2 2 . Device 1 | 1 . . Storage 2 | 1 1 . Processor 1 | . 1 . Hackware . | . . . Protection . | . . . Artifact . | . . . Weapon 4 | 2 . 2 Energy Gun 2 | 1 . 1 Energy Cannon . | . . . Ballistic Gun 2 | 1 . 1 Ballistic Cannon . | . . . Launcher . | . . . Special Weapon . | . . . Impact Weapon . | . . . Slashing Weapon . | . . . Piercing Weapon . | . . . Special Melee Weapon . | . . . Unidentified Prototypes . | . . . Parts Lost 8 | . 3 5 Power 2 | . 1 1 Propulsion 3 | . 1 2 Utility 1 | . 1 . Weapon 2 | . . 2 Highest Loss Streak 5 | . 2 5 To Critical Strikes . | . . . Average Backups 5 | 2 7 6 Power . | . . . Propulsion 3 | 1 3 3 Utility . | . . 1 Weapon 1 | . 1 2 Tool/Special . | . . . Unused Backups 6 | . 1 5 Power . | . . . Propulsion 4 | . 1 3 Utility 1 | . . 1 Weapon 1 | . . 1 Tool/Special . | . . . Average Slot Usage (%) 93 | . 91 97 Engine 13 | . 12 14 Wheel 27 | . 28 25 Device 1 | . 2 . Storage 15 | . 16 14 Processor 5 | . 1 14 Energy Gun 14 | . 14 14 Ballistic Gun 14 | . 14 14 Peak Build Rating 7 | 7 7 7 Average Rating 6 | 5 6 6 On Entrance 4 | . 7 7 Avg Prop Armor Cover (%) . | . . . Naked Turns . | . . . Heaviest Build 22 | 13 22 17 Greatest Support 26 | 26 26 20 Greatest Overweight (x) 1 | . 1 . Average Overweight (x) . | . . . Largest Inventory Capacity 10 | 8 10 10 Average Capacity 8 | 7 8 10 Most Carried 8 | 7 8 7 Average Carried 5 | 2 7 6 Final Capacity 10 | 8 10 10 Final Carried 7 | 7 6 5 Class Distribution -------------------- 100% | Mutant Dominant Class ---------------- Mutant | -10/Materials Mutant | -10/Mines Resources | -11 -10 -10 ----------- Run | Yrd Mat Min Matter Collected 351 | 265 47 39 Remotely . | . . . Salvage Created 274 | 124 88 62 Parts 22 | 4 12 6 Haulers Intercepted . | . . . Recyclers Shooed 1 | . 1 . Parts Field Recycled . | . . . Retrieved Matter . | . . . Parts Self-Destructed . | . . . Prevented . | . . . Parts Restored . | . . . Kills | -11 -10 -10 ------- Run | Yrd Mat Min Combat Hostiles Destroyed 7 | . 6 1 Guns 7 | . 6 1 Classes Destroyed 5 | 2 1 2 Worker 1 | . . 1 Tunneler 1 | 1 . . Recycler 1 | 1 . . Swarmer 6 | . 6 . Grunt 1 | . . 1 Best Kill Streak 3 | 1 3 1 Combat Bots Only 3 | . 3 1 Max Kills in Single Turn 1 | 1 1 1 Gunslinging . | . . . Exploded . | . . . Melee . | . . . Uniques/NPCs Destroyed . | . . . Combat | -11 -10 -10 -------- Run | Yrd Mat Min Hostile Shots Fired 88 | . 52 36 Missed 25 | . 18 7 Hits 63 | . 34 29 Projectile 63 | . 34 29 Critical Strikes 3 | . 2 1 Damage Taken 754 | . 330 424 Core 261 | . 95 166 Absorbed by Shields . | . . . Core Remaining (%) 100 | 100 . . Volleys Fired 44 | 8 21 15 Largest 2 | 2 2 2 Hottest 60 | 60 60 60 Shots Fired 86 | 16 41 29 Gun 86 | 16 41 29 Cannon . | . . . Launcher . | . . . Special . | . . . Kinetic 43 | 8 21 14 Thermal 43 | 8 20 15 Explosive . | . . . Electromagnetic . | . . . Robot Hit Streak 8 | 5 4 8 Robot Miss Streak 5 | 2 5 2 Penetration Max . | . . . Secondary Targets 2 | . 2 . Max Gunslinging Chain 1 | . 1 . Shots Hit Robots 48 | 11 19 18 Core Hits 17 | 4 8 5 Critical Kills 1 | . 1 . Critical Parts Destroyed . | . . . Critical Strikes 1 | . 1 . Destroy 1 | . 1 . Melee Attacks . | . . . Impact . | . . . Slashing . | . . . Piercing . | . . . Sneak Attacks . | . . . Combat Hostiles . | . . . Follow-up Attacks . | . . . Damage Inflicted 461 | 103 193 165 Guns 461 | 103 193 165 Cannons . | . . . Explosions . | . . . Melee . | . . . Ramming . | . . . Kinetic 219 | 36 105 78 Thermal 242 | 67 88 87 Explosive . | . . . Electromagnetic . | . . . Impact . | . . . Slashing . | . . . Piercing . | . . . Highest Corruption . | . . . Average Corruption . | . . . Corruption Purged . | . . . Corruption Blocked . | . . . Overload Shots . | . . . Overflow Damage . | . . . Projectiles . | . . . Explosions . | . . . Melee . | . . . Knockbacks . | . . . Impact . | . . . Kinetic . | . . . Secondary . | . . . Self-Inflicted Damage . | . . . Shots . | . . . Rammed . | . . . Targets Rammed . | . . . Kicked . | . . . Crushed . | . . . Highest Temperature 141 | 40 40 141 Average Temperature 35 | 17 18 61 Received Heat Transfer 189 | . . 189 Siege Activations . | . . . Martial Activations . | . . . Shielding Activations . | . . . Robots Disrupted . | . . . Combat Hostiles . | . . . Robots Corrupted . | . . . Combat Hostiles . | . . . Parts Fried . | . . . Impact Corruptions . | . . . Robots Melted . | . . . Combat Hostiles . | . . . Parts Melted . | . . . Heat Transferred 550 | 150 200 200 Parts Sabotaged . | . . . Parts Stolen . | . . . Parts Stripped . | . . . Power Chain Reactions . | . . . Alert | -11 -10 -10 ------- Run | Yrd Mat Min Maximum Alert Level . | . . . Low Security (%) 100 | 100 100 100 Level 1 . | . . . Level 2 . | . . . Level 3 . | . . . Level 4 . | . . . Level 5 . | . . . High Security . | . . . Max Security . | . . . Peak Influence 75 | 5 75 35 Initial 17 | . . 17 Average 23 | . 39 13 Influence Increases 205 | 10 155 40 Destroy 0b10 Robot/C 140 | . 120 20 Destroy 0b10 Robot/NC 15 | 10 . 5 Destroy Leader 20 | . 20 . Lose Combat Pursuer 30 | . 15 15 Influence Decreases 205 | 10 110 85 Entered New Map 28 | . . 28 Time Decay 137 | 10 90 37 Lost Part 40 | . 20 20 Squads Dispatched . | . . . Investigation . | . . . Extermination . | . . . Reinforcement . | . . . Assault . | . . . Garrison . | . . . Intercept . | . . . Searches Triggered . | . . . Construction Impeded . | . . . Haulers Reinforced . | . . . Active Scanning Responses . | . . . Cargo Convoy Interrupts . | . . . Stealth | -11 -10 -10 --------- Run | Yrd Mat Min Distress Signals 2 | . 2 . Communications Jammed . | . . . Distress Signals . | . . . Times Spotted 14 | . 9 5 Peak Tracking Total 4 | . 4 4 Tactical Retreats 2 | . 1 1 Traps | -11 -10 -10 ------- Run | Yrd Mat Min Traps Triggered 2 | . 2 . Indirectly . | . . . Trap Hack Attempts . | . . . Triggered . | . . . Disarmed . | . . . Reprogrammed . | . . . Reused . | . . . Traps Extracted . | . . . Installed . | . . . Triggered . | . . . Machines | -11 -10 -10 ---------- Run | Yrd Mat Min Machines Disabled . | . . . Max in Single Turn . | . . . Machines Repaired . | . . . Machines Dismantled . | . . . Machines Sabotaged . | . . . Overloaded Fab Kills . | . . . Hacking | -11 -10 -10 --------- Run | Yrd Mat Min Machines Accessed 1 | . 1 . Terminals . | . . . Fabricators . | . . . Repair Stations . | . . . Recycling Units 1 | . 1 . Scanalyzers . | . . . Garrison Access . | . . . Total Hacks 1 | . 1 . Successful 1 | . 1 . Failed . | . . . Catastrophic . | . . . Database Lockouts . | . . . Manual . | . . . Terminals . | . . . Fabricators . | . . . Repair Stations . | . . . Recycling Units 1 | . 1 . Scanalyzers . | . . . Garrison Access . | . . . Terminal Hacks . | . . . Fabricator Hacks . | . . . Repair Station Hacks . | . . . Recycling Unit Hacks 1 | . 1 . Retrieve Components 1 | . 1 . Scanalyzer . | . . . Garrison Access Hacks . | . . . Unauthorized Hacks . | . . . Terminals . | . . . Fabricators . | . . . Repair Stations . | . . . Recycling Units . | . . . Scanalyzers . | . . . Garrison Access . | . . . Data Cores Recovered . | . . . Used . | . . . Hacking Detections . | . . . Full Trace Events . | . . . Feedback Events . | . . . Feedback Blocked . | . . . Robot Schematics Acquired . | . . . Robots Built . | . . . Authchips . | . . . Time . | . . . Total Robot Build Rating . | . . . Part Schematics Acquired . | . . . Parts Built . | . . . Authchips . | . . . Time . | . . . Total Part Build Rating . | . . . Part Studies Acquired . | . . . Parts Repaired . | . . . Time . | . . . Parts Recycled . | . . . Recycled Matter . | . . . Retrieved Matter . | . . . Retrieved Components 1 | . 1 . Parts Scanalyzed . | . . . Part Schematics Acquired . | . . . Parts Damaged . | . . . Bothacking | -11 -10 -10 ------------ Run | Yrd Mat Min Used RIF Installer . | . . . Robots Hacked . | . . . Non-combat . | . . . Combat . | . . . Robot Hacks Applied . | . . . Relay Couplers Released . | . . . Fabnet Peak Effective % . | . . . Robots Rewired . | . . . Allies Hacked . | . . . Hacks Repelled . | . . . Allies | -11 -10 -10 -------- Run | Yrd Mat Min Total Allies . | . . . Largest Group . | . . . Highest-Rated Group . | . . . Highest-Rated Ally . | . . . Total Orders . | . . . Ally Attacks . | . . . Total Damage . | . . . Kills . | . . . Allies Corrupted . | . . . Allies Melted . | . . . Intel | -11 -10 -10 ------- Run | Yrd Mat Min Active Infowar (turns) 55 | 11 44 . Seismic 55 | 11 44 . Robot Analysis Total . | . . . Derelict Logs Recovered . | . . . Drone Launches . | . . . Drone Recoveries . | . . . Exploration | -11 -10 -10 ------------- Run | Yrd Mat Min Turns Passed 475 | 112 245 118 Spaces Moved 369 | 81 206 82 Core 2 | 2 . . Treads . | . . . Legs . | . . . Wheels 367 | 79 206 82 Hover . | . . . Flight . | . . . Fastest Speed 50 | 50 80 80 Average Speed 85 | 89 86 80 Slowest Speed 100 | 100 95 80 Overloaded Moves . | . . . Propulsion Burnouts . | . . . Robots Hopped . | . . . Potential Cave-ins . | . . . Cave-ins Triggered . | . . . Exploration Rate (%) 24 | 4 44 25 Regions Visited 2 Branch Regions 1 Pre-discovered Areas . | . . . Known Exits Taken 1 | . 1 . Unknown Exits Taken 1 | 1 . . Scrap Searched . | . . . Spaces Dug . | . . . Terrain Destroyed . | . . . Melee . | . . . Projectile . | . . . AOE . | . . . Terrain Rammed . | . . . Walls Destroyed . | . . . Machines Disabled . | . . . Actions | -11 -10 -10 --------- Run | Yrd Mat Min Total 446 | 102 235 109 Wait 10 | . 1 9 Move 367 | 80 205 82 Hop . | . . . Pick Up 9 | 7 2 . Fast Attach 9 | 7 2 . Attach 4 | . 2 2 Detach . | . . . Swap 1 | . . 1 Drop 2 | . 2 . Fire 44 | 8 21 15 Melee . | . . . Ram . | . . . Kick . | . . . Crush . | . . . Escape Stasis . | . . . Rewire . | . . . Trap . | . . . Miscellaneous . | . . . Route ------- -11/Scrapyard -10/Materials (discovered 2 exits: *Mat / *Min) -10/Mines (discovered 1 exit: *Mat) History --------- Turn | Location | Event 14 | -11/Scrapyard | Discovered new exit (range 16) 113 | -11/Scrapyard | Entered Materials 221 | -10/Materials | Discovered new exit (range 7) 243 | -10/Materials | Discovered new exit (range 12) 320 | -10/Materials | Build established: Mutant 355 | -10/Materials | Identified exit to Mines 358 | -10/Materials | Entered Mines 366 | -10/Mines | Met a Derelict bent on vengeance 374 | -10/Mines | Discovered new exit (range 12) 382 | -10/Mines | Identified exit to Materials 394 | -10/Mines | Core integrity fell below 50% 462 | -10/Mines | Core integrity fell below 20% 476 | -10/Mines | Destroyed by G-47 Trooper with Particle Gun Last Messages --------------- 00361_ D2-0AA(g) slips into the shadows. 00374_ EXIT=FOUND 00377_ K-01 Serf collects debris. 00382_ EXIT=IDENTIFIED: MATERIALS 00383_ K-01 Serf collects debris. 00413_ K-01 Serf cleans the Core Extractor. 00418_ K-01 Serf collects debris. 00418_ G-34 Mercenary destroyed. 00424_ Acquired 39 matter. 00431_ K-01 Serf collects debris. 00434_ K-01 Serf cleans the Core Extractor. 00443_ K-01 Serf collects debris. 00451_ T-07 Excavator destroyed. 00452_ K-01 Serf collects debris. 00457_ K-01 Serf destroyed. 00463_ Lgt. Assault Rifle destroyed. 00466_ Wheel destroyed. 00472_ Ion Engine destroyed. 00472_ Critical hit (Burn: +37). 00472_ Sml. Laser destroyed. Map ----- +----------------------------------------------------+ | | | | | | | | | | | | | | | | | | | | | | | ?????????????????????????????????????????????????? | | ?????????????????????????????????????????????????? | | ?????######?????????#######?#########????????????? | | ????## ##???????## ### ####?????????? | | ?#### ######?## """ ??????????? | | ##/!## ## ### """ #????????????? | | #"]! # ## ###*""" #????????????? | | # / ### ####?# #????????????? | | # / ## #### #????# #######????????????? | | #"!! # < #### #?# #????#!#??????????????????? | | ##[]## #?## ### #????#=#??????????????????? | | ####?### #?# ## ###### #??????????????????? | | # ??## ##?# ## ## #??????????????????? | | # ## #??## ##Y#####??????????????????? | | ?# ##??### ##@#??????????????????????? | | ?## ###??########%#??????????????????????? | | ??# ##????????# #??????????????????????? | | ??# #????????# #??????????????????????? | | ??## ## #???????? g#??????????????????????? | | ???#####?## ##??????? = ??????????????????????? | | ?????????## ###?????!% ??????????????????????? | | ??????#### #????? ??????????????????????? | | ??????# #???? ??????????????????????? | | ??????# ### #????# ??????????????????????? | | ??????# #?#### #?????# ??????????????????????? | | ??????# #????? ##?????? ??????????????????????? | | ??????# #????? ###??????? ??????????????????????? | | ??????# #????? #????????? ??????????????????????? | | ??????# ###### #????????? ??????????????????????? | | ??????# #????????? ??????????????????????? | | ??????# #########????????????????????????????????? | | ??????# #????????????????????????????????????????? | | ??????# #????????????????????????????????????????? | | ??????# ##???????????????????????????????????????? | | ?????## ##??????????????????????????????????????? | | ?????# #??????????????????????????????????????? | | ?????# #??????????????????????????????????????? | | ????## #??????????????????????????????????????? | | ???## ##?????????????????????????????????????? | +----------------------------------------------------+ Best States ------------- Heat Dissipation 25 Energy Generation 10 Energy Capacity 250 Matter Stores 300 Matter Capacity 300 Sight Range 16 Terrain Scan Density 10 Evasion (%) 44 Item Schematics ----------------- None Robot Schematics ------------------ None Fabricated ------------ Nothing Repaired ---------- Nothing Studied --------- None Alien Tech Used ----------------- None Achievements -------------- None Challenges ------------ None Game ------ Seed ArmageddonTerrorTelecube Manual? 0 Play Time 00:06:30 Cumulative 45.0 hours Start 2026.06.28 @ 18:37:30 End 2026.06.28 @ 18:42:34 Sessions 1 Manual Loads 0 Difficulty Rogue Special Mode None Game No. 40 Rogue 39 Adventurer 0 Explorer 1 Win Type - Total 1 Types 1/0/0/0/0/0/0/0/0/0 Lore% 43 Gallery% 36 Achievement% 22 Wizard Run 0 Options --------- Layout 1 ASCII 0 Keyboard 0 Movement Mouse Keybinds 0 Fullscreen 1 Font 32/SmallcapsGlow Map View 50x35 Zoom Use 0% Tactical HUD 1 Map Filters NONE Filters NONE Steam 1 RUN: ba460da4-96bb-41ce-86d8-4ab833f68723